[Event "Late-Titled-Tuesday-Blitz-March-05-2024"]
[Site "Chess.com"]
[Date "2024.03.05"]
[Round "3"]
[White "Charodej1"]
[Black "KerryStead"]
[Result "1-0"]
[WhiteElo "2332"]
[BlackElo "2041"]
[TimeControl "180+1"]
[EndTime "14:29:10 PST"]
[Termination "Charodej1 won on time"]

1. e4 {[%clk 0:02:56.2]} 1... c6 {[%clk 0:02:59.6]} 2. d4 {[%clk 0:02:54.4]}
2... d5 {[%clk 0:03:00.3]} 3. exd5 {[%clk 0:02:55]} 3... cxd5 {[%clk 0:03:00.5]}
4. c4 {[%clk 0:02:55.7]} 4... Nf6 {[%clk 0:02:58.9]} 5. Nc3 {[%clk 0:02:54.2]}
5... Nc6 {[%clk 0:02:58.9]} 6. Nf3 {[%clk 0:02:51.7]} 6... Bf5 {[%clk
0:02:57.8]} 7. Bg5 {[%clk 0:02:41.3]} 7... e6 {[%clk 0:02:47.1]} 8. Be2 {[%clk
0:02:37.9]} 8... Bb4 {[%clk 0:02:45.5]} 9. O-O {[%clk 0:02:35.2]} 9... Bxc3
{[%clk 0:02:44.7]} 10. bxc3 {[%clk 0:02:33.6]} 10... h6 {[%clk 0:02:44.9]} 11.
Bh4 {[%clk 0:02:25.6]} 11... Ne7 {[%clk 0:02:35.5]} 12. Ne5 {[%clk 0:02:10.2]}
12... Qa5 {[%clk 0:02:16.5]} 13. Qb3 {[%clk 0:01:59.2]} 13... b6 {[%clk
0:01:53]} 14. cxd5 {[%clk 0:01:48.7]} 14... Nfxd5 {[%clk 0:01:48.8]} 15. Bb5+
{[%clk 0:01:44.3]} 15... Kf8 {[%clk 0:01:43.1]} 16. Nd7+ {[%clk 0:01:11.6]}
16... Kg8 {[%clk 0:01:40.9]} 17. c4 {[%clk 0:01:10.9]} 17... g5 {[%clk
0:01:29.4]} 18. Bg3 {[%clk 0:00:54.4]} 18... Nf4 {[%clk 0:01:27.6]} 19. Bxf4
{[%clk 0:00:50.6]} 19... gxf4 {[%clk 0:01:27.9]} 20. c5 {[%clk 0:00:20.7]} 20...
Nd5 {[%clk 0:01:10.9]} 21. Bc6 {[%clk 0:00:18.2]} 21... Rc8 {[%clk 0:01:09.4]}
22. Bxd5 {[%clk 0:00:18.1]} 22... exd5 {[%clk 0:01:08.6]} 23. Qxd5 {[%clk
0:00:17.7]} 23... Be6 {[%clk 0:01:05.8]} 24. Qb7 {[%clk 0:00:14]} 24... Kg7
{[%clk 0:01:01.5]} 25. c6 {[%clk 0:00:11.2]} 25... Bd5 {[%clk 0:00:56.7]} 26.
Ne5 {[%clk 0:00:10.8]} 26... Rhf8 {[%clk 0:00:28.5]} 27. Qd7 {[%clk 0:00:10.5]}
27... Be6 {[%clk 0:00:24.2]} 28. Qe7 {[%clk 0:00:09.8]} 28... Qd5 {[%clk
0:00:20.5]} 29. Rfd1 {[%clk 0:00:09.3]} 29... Rfe8 {[%clk 0:00:17.7]} 30. Qh4
{[%clk 0:00:09.2]} 30... Rc7 {[%clk 0:00:16.3]} 31. Qxf4 {[%clk 0:00:09.2]}
31... Rxc6 {[%clk 0:00:13.2]} 32. Nxc6 {[%clk 0:00:08.9]} 32... Qxc6 {[%clk
0:00:14.1]} 33. Qe5+ {[%clk 0:00:09]} 33... f6 {[%clk 0:00:12.9]} 34. Qg3+
{[%clk 0:00:09.6]} 34... Kf7 {[%clk 0:00:12.9]} 35. Qh4 {[%clk 0:00:08.6]} 35...
Qd5 {[%clk 0:00:11.7]} 36. Qxh6 {[%clk 0:00:07.8]} 36... Rg8 {[%clk 0:00:12.4]}
37. g3 {[%clk 0:00:05.2]} 37... Bd7 {[%clk 0:00:10.9]} 38. Qh7+ {[%clk
0:00:04.8]} 38... Rg7 {[%clk 0:00:11.1]} 39. Qd3 {[%clk 0:00:05.1]} 39... Bc6
{[%clk 0:00:10.8]} 40. f3 {[%clk 0:00:05.6]} 40... Kf8 {[%clk 0:00:10]} 41. Rac1
{[%clk 0:00:05.4]} 41... Qxf3 {[%clk 0:00:08.9]} 42. Qxf3 {[%clk 0:00:05.5]}
42... Bxf3 {[%clk 0:00:09.8]} 43. Rf1 {[%clk 0:00:05.5]} 43... Bd5 {[%clk
0:00:08.4]} 44. a3 {[%clk 0:00:06]} 44... Rf7 {[%clk 0:00:07.5]} 45. Rf5 {[%clk
0:00:05.9]} 45... Be6 {[%clk 0:00:07]} 46. Rf4 {[%clk 0:00:06.6]} 46... Kg7
{[%clk 0:00:06.7]} 47. Kf2 {[%clk 0:00:06.7]} 47... Kg6 {[%clk 0:00:05.3]} 48.
Re4 {[%clk 0:00:06.9]} 48... Bd5 {[%clk 0:00:04.3]} 49. Re8 {[%clk 0:00:06.8]}
49... Rd7 {[%clk 0:00:04.2]} 50. Rec8 {[%clk 0:00:06.5]} 50... Be6 {[%clk
0:00:03.1]} 51. Ke3 {[%clk 0:00:06.5]} 51... Bf5 {[%clk 0:00:03]} 52. R8c7
{[%clk 0:00:06.7]} 52... Rd5 {[%clk 0:00:01.6]} 53. Rxa7 {[%clk 0:00:06.5]} 1-0

[Event "Late-Titled-Tuesday-Blitz-March-05-2024"]
[Site "Chess.com"]
[Date "2024.03.05"]
[Round "3"]
[White "Tugrik1969"]
[Black "jk13"]
[Result "1-0"]
[WhiteElo "2405"]
[BlackElo "2647"]
[TimeControl "180+1"]
[EndTime "14:29:11 PST"]
[Termination "Tugrik1969 won on time"]

1. d4 {[%clk 0:02:59.4]} 1... d5 {[%clk 0:02:58.9]} 2. c4 {[%clk 0:02:58.7]}
2... c6 {[%clk 0:02:58.5]} 3. Nf3 {[%clk 0:02:58.4]} 3... Nf6 {[%clk 0:02:59.1]}
4. Nc3 {[%clk 0:02:58.4]} 4... e6 {[%clk 0:02:58.8]} 5. g3 {[%clk 0:02:58.4]}
5... Nbd7 {[%clk 0:02:58.8]} 6. Qd3 {[%clk 0:02:56.8]} 6... b6 {[%clk 0:02:53]}
7. Bg2 {[%clk 0:02:49.4]} 7... Bb7 {[%clk 0:02:51.5]} 8. O-O {[%clk 0:02:48.2]}
8... Bb4 {[%clk 0:02:50.7]} 9. Nd2 {[%clk 0:02:30.9]} 9... c5 {[%clk 0:02:45.9]}
10. cxd5 {[%clk 0:02:23.3]} 10... Bxc3 {[%clk 0:02:41.4]} 11. bxc3 {[%clk
0:02:07.5]} 11... Bxd5 {[%clk 0:02:33.1]} 12. e4 {[%clk 0:02:05.2]} 12... Bb7
{[%clk 0:02:32.4]} 13. d5 {[%clk 0:01:54.4]} 13... exd5 {[%clk 0:02:28.7]} 14.
exd5 {[%clk 0:01:53.8]} 14... O-O {[%clk 0:02:25]} 15. c4 {[%clk 0:01:53]} 15...
Re8 {[%clk 0:02:24.7]} 16. Bb2 {[%clk 0:01:52.5]} 16... Ne5 {[%clk 0:02:21.3]}
17. Qc3 {[%clk 0:01:45.4]} 17... Qd6 {[%clk 0:02:19.3]} 18. Rfe1 {[%clk
0:01:44.6]} 18... Ng6 {[%clk 0:02:17.3]} 19. Ne4 {[%clk 0:01:38.7]} 19... Rxe4
{[%clk 0:02:03.3]} 20. Bxe4 {[%clk 0:01:34.3]} 20... h5 {[%clk 0:01:42.3]} 21.
Bxg6 {[%clk 0:01:20.1]} 21... fxg6 {[%clk 0:01:42.3]} 22. Re6 {[%clk 0:01:20.6]}
22... Qf8 {[%clk 0:01:37.3]} 23. Rae1 {[%clk 0:01:11.3]} 23... Rd8 {[%clk
0:01:33.9]} 24. Qf3 {[%clk 0:01:00.6]} 24... Bc8 {[%clk 0:01:30.2]} 25. Bxf6
{[%clk 0:00:36]} 25... Bxe6 {[%clk 0:01:29.7]} 26. dxe6 {[%clk 0:00:35.6]} 26...
Re8 {[%clk 0:01:24.9]} 27. Qd5 {[%clk 0:00:28.5]} 27... Qxf6 {[%clk 0:01:21.3]}
28. e7+ {[%clk 0:00:28.2]} 28... Qf7 {[%clk 0:00:45.6]} 29. a4 {[%clk
0:00:27.3]} 29... g5 {[%clk 0:00:37.4]} 30. Qxg5 {[%clk 0:00:21.1]} 30... Qxc4
{[%clk 0:00:35.7]} 31. Qxh5 {[%clk 0:00:21.2]} 31... Qf7 {[%clk 0:00:34.7]} 32.
Qe5 {[%clk 0:00:20.7]} 32... Qf6 {[%clk 0:00:32]} 33. Qc7 {[%clk 0:00:17.3]}
33... a5 {[%clk 0:00:26.1]} 34. h4 {[%clk 0:00:15.8]} 34... Kf7 {[%clk
0:00:25.9]} 35. h5 {[%clk 0:00:13.6]} 35... Rxe7 {[%clk 0:00:17.3]} 36. Rxe7+
{[%clk 0:00:13.7]} 36... Qxe7 {[%clk 0:00:18.2]} 37. Qxb6 {[%clk 0:00:14.3]}
37... Qe1+ {[%clk 0:00:17.6]} 38. Kg2 {[%clk 0:00:13.6]} 38... Qb4 {[%clk
0:00:18.5]} 39. Qg6+ {[%clk 0:00:11.9]} 39... Kf8 {[%clk 0:00:18.5]} 40. Qd6+
{[%clk 0:00:11.6]} 40... Ke8 {[%clk 0:00:18.3]} 41. Qe6+ {[%clk 0:00:11.4]}
41... Kf8 {[%clk 0:00:18.1]} 42. Qd6+ {[%clk 0:00:11.4]} 42... Kf7 {[%clk
0:00:18.5]} 43. Qd5+ {[%clk 0:00:09]} 43... Kf6 {[%clk 0:00:16.8]} 44. Qd6+
{[%clk 0:00:08.9]} 44... Kf5 {[%clk 0:00:15.4]} 45. Qg6+ {[%clk 0:00:08.9]}
45... Ke5 {[%clk 0:00:15]} 46. Qxg7+ {[%clk 0:00:09.1]} 46... Ke4 {[%clk
0:00:15.8]} 47. h6 {[%clk 0:00:09.4]} 47... Qb3 {[%clk 0:00:13.2]} 48. Qg6+
{[%clk 0:00:08.1]} 48... Ke5 {[%clk 0:00:11.5]} 49. Qg5+ {[%clk 0:00:06.8]}
49... Kd6 {[%clk 0:00:10.9]} 50. Qf6+ {[%clk 0:00:06.3]} 50... Kc7 {[%clk
0:00:10.7]} 51. h7 {[%clk 0:00:05.9]} 51... Qd5+ {[%clk 0:00:10.2]} 52. Kh2
{[%clk 0:00:06]} 52... Qh5+ {[%clk 0:00:04.3]} 53. Qh4 {[%clk 0:00:06.5]} 53...
Qf3 {[%clk 0:00:03.1]} 54. Qf4+ {[%clk 0:00:06.4]} 54... Qxf4 {[%clk 0:00:03.2]}
55. gxf4 {[%clk 0:00:07.3]} 1-0

[Event "Late-Titled-Tuesday-Blitz-March-05-2024"]
[Site "Chess.com"]
[Date "2024.03.05"]
[Round "3"]
[White "MikeSailer"]
[Black "Akhayan"]
[Result "1-0"]
[WhiteElo "2190"]
[BlackElo "2388"]
[TimeControl "180+1"]
[EndTime "14:29:14 PST"]
[Termination "MikeSailer won on time"]

1. d4 {[%clk 0:03:00.5]} 1... f5 {[%clk 0:02:58.9]} 2. Nc3 {[%clk 0:02:48.9]}
2... Nf6 {[%clk 0:02:58.9]} 3. Bg5 {[%clk 0:02:44.4]} 3... e6 {[%clk 0:02:58.9]}
4. e4 {[%clk 0:02:44.2]} 4... fxe4 {[%clk 0:02:58.8]} 5. Nxe4 {[%clk 0:02:44.7]}
5... Be7 {[%clk 0:02:59.4]} 6. Bxf6 {[%clk 0:02:43.7]} 6... Bxf6 {[%clk
0:02:59.6]} 7. Bd3 {[%clk 0:02:38.7]} 7... d5 {[%clk 0:02:51.7]} 8. Qh5+ {[%clk
0:02:26]} 8... g6 {[%clk 0:02:49.8]} 9. Nxf6+ {[%clk 0:02:25.7]} 9... Qxf6
{[%clk 0:02:49.3]} 10. Qe2 {[%clk 0:02:20.2]} 10... Qxd4 {[%clk 0:02:42.4]} 11.
O-O-O {[%clk 0:02:19]} 11... Qf6 {[%clk 0:02:38.1]} 12. h4 {[%clk 0:02:04.6]}
12... Nc6 {[%clk 0:02:34.2]} 13. h5 {[%clk 0:02:04.5]} 13... g5 {[%clk 0:02:34]}
14. h6 {[%clk 0:01:46.1]} 14... Bd7 {[%clk 0:02:33.6]} 15. Qh5+ {[%clk 0:01:46]}
15... Ke7 {[%clk 0:02:27.4]} 16. Rh3 {[%clk 0:01:34.7]} 16... Ne5 {[%clk
0:02:13.5]} 17. Nf3 {[%clk 0:01:30.4]} 17... Nxd3+ {[%clk 0:02:07.9]} 18. Rxd3
{[%clk 0:01:28.3]} 18... Rag8 {[%clk 0:01:50.1]} 19. Nd2 {[%clk 0:01:13.5]}
19... g4 {[%clk 0:01:38]} 20. Rhe3 {[%clk 0:01:13.3]} 20... c6 {[%clk
0:01:21.1]} 21. Qh2 {[%clk 0:01:04.9]} 21... Rc8 {[%clk 0:01:04.8]} 22. f3
{[%clk 0:00:57.3]} 22... Rhf8 {[%clk 0:00:55.2]} 23. fxg4 {[%clk 0:00:53.7]}
23... Qf2 {[%clk 0:00:55.8]} 24. b3 {[%clk 0:00:38.5]} 24... Qf6 {[%clk
0:00:53.4]} 25. Kb1 {[%clk 0:00:34.9]} 25... Qf2 {[%clk 0:00:47.6]} 26. Qe5
{[%clk 0:00:28.7]} 26... Qg1+ {[%clk 0:00:44.3]} 27. Kb2 {[%clk 0:00:27.9]}
27... Rf7 {[%clk 0:00:38.5]} 28. Qg5+ {[%clk 0:00:17.2]} 28... Kd6 {[%clk
0:00:35.7]} 29. Qe5+ {[%clk 0:00:15.6]} 29... Ke7 {[%clk 0:00:33.3]} 30. Qg5+
{[%clk 0:00:13.6]} 30... Ke8 {[%clk 0:00:27.3]} 31. Nf3 {[%clk 0:00:10.3]} 31...
Qxg2 {[%clk 0:00:17.6]} 32. Ne5 {[%clk 0:00:10.7]} 32... Rf2 {[%clk 0:00:13.2]}
33. Qg8+ {[%clk 0:00:09]} 33... Rf8 {[%clk 0:00:13.8]} 34. Qg7 {[%clk
0:00:09.1]} 34... Rc7 {[%clk 0:00:14]} 35. Qxh7 {[%clk 0:00:04.8]} 35... Kd8
{[%clk 0:00:13.2]} 36. Qg6 {[%clk 0:00:04.1]} 36... Re8 {[%clk 0:00:12.9]} 37.
Qg5+ {[%clk 0:00:04.3]} 37... Kc8 {[%clk 0:00:12]} 38. Nf7 {[%clk 0:00:04.8]}
38... Kb8 {[%clk 0:00:10.9]} 39. h7 {[%clk 0:00:05.3]} 39... Qh2 {[%clk
0:00:10.5]} 40. h8=Q {[%clk 0:00:05.1]} 40... Rxh8 {[%clk 0:00:10.7]} 41. Nxh8
{[%clk 0:00:05.5]} 41... Qxh8+ {[%clk 0:00:11.1]} 42. c3 {[%clk 0:00:04.4]}
42... Qf8 {[%clk 0:00:11.6]} 43. Rf3 {[%clk 0:00:04.4]} 43... Qc5 {[%clk
0:00:10.8]} 44. Qg8+ {[%clk 0:00:03.4]} 44... Bc8 {[%clk 0:00:11.2]} 45. Rf7
{[%clk 0:00:02.8]} 45... Qd6 {[%clk 0:00:10]} 46. Rdf3 {[%clk 0:00:02.7]} 46...
Rd7 {[%clk 0:00:09.3]} 47. Rxd7 {[%clk 0:00:03]} 47... Qxd7 {[%clk 0:00:09.8]}
48. Rf8 {[%clk 0:00:03.2]} 48... Qc7 {[%clk 0:00:10.2]} 49. g5 {[%clk
0:00:03.5]} 49... Qh2+ {[%clk 0:00:10.1]} 50. Ka3 {[%clk 0:00:04.1]} 50... Qd6+
{[%clk 0:00:10.3]} 51. b4 {[%clk 0:00:04.6]} 51... Qc7 {[%clk 0:00:08.6]} 52.
Rxc8+ {[%clk 0:00:04]} 52... Qxc8 {[%clk 0:00:08.6]} 53. Qxc8+ {[%clk
0:00:04.8]} 53... Kxc8 {[%clk 0:00:09.2]} 54. g6 {[%clk 0:00:05.7]} 54... Kd7
{[%clk 0:00:09.7]} 55. g7 {[%clk 0:00:06.6]} 55... Kd6 {[%clk 0:00:10.2]} 56.
g8=Q {[%clk 0:00:07.5]} 56... Kc7 {[%clk 0:00:10.4]} 57. Qf7+ {[%clk 0:00:07.7]}
57... Kb6 {[%clk 0:00:11.3]} 58. Qxe6 {[%clk 0:00:08.3]} 1-0

[Event "Late-Titled-Tuesday-Blitz-March-05-2024"]
[Site "Chess.com"]
[Date "2024.03.05"]
[Round "3"]
[White "szachmistrz2500"]
[Black "sotochess"]
[Result "1/2-1/2"]
[WhiteElo "2435"]
[BlackElo "2577"]
[TimeControl "180+1"]
[EndTime "14:29:18 PST"]
[Termination "Game drawn by repetition"]

1. d4 {[%clk 0:02:59.7]} 1... d5 {[%clk 0:02:57.8]} 2. c4 {[%clk 0:02:59.1]}
2... c6 {[%clk 0:02:55.4]} 3. Nf3 {[%clk 0:02:58.8]} 3... Nf6 {[%clk 0:02:55.3]}
4. Qc2 {[%clk 0:02:58.8]} 4... g6 {[%clk 0:02:52.6]} 5. Nc3 {[%clk 0:02:57.8]}
5... Bg7 {[%clk 0:02:52.2]} 6. Bf4 {[%clk 0:02:56.9]} 6... dxc4 {[%clk
0:02:48.7]} 7. a4 {[%clk 0:02:52.6]} 7... Na6 {[%clk 0:02:47.8]} 8. e3 {[%clk
0:02:46.3]} 8... Nd5 {[%clk 0:02:45.8]} 9. Bg3 {[%clk 0:02:40.2]} 9... Nab4
{[%clk 0:02:44.6]} 10. Qd1 {[%clk 0:02:33.2]} 10... Nxc3 {[%clk 0:02:39.5]} 11.
bxc3 {[%clk 0:02:30.7]} 11... Nd5 {[%clk 0:02:39.9]} 12. Bxc4 {[%clk 0:02:28.9]}
12... Nxc3 {[%clk 0:02:38.6]} 13. Qb3 {[%clk 0:02:27.9]} 13... Nd5 {[%clk
0:02:38.4]} 14. e4 {[%clk 0:02:27.7]} 14... Qa5+ {[%clk 0:02:30.4]} 15. Kf1
{[%clk 0:02:17.2]} 15... Nf6 {[%clk 0:02:16.2]} 16. Bxf7+ {[%clk 0:02:15.5]}
16... Kf8 {[%clk 0:02:16.3]} 17. Re1 {[%clk 0:02:07.7]} 17... Nh5 {[%clk
0:01:31.1]} 18. Be5 {[%clk 0:01:52.9]} 18... Bf6 {[%clk 0:01:16.1]} 19. h3
{[%clk 0:01:47.6]} 19... Kg7 {[%clk 0:01:05.1]} 20. g4 {[%clk 0:01:38.1]} 20...
Rf8 {[%clk 0:01:04.5]} 21. Be6 {[%clk 0:01:24.8]} 21... Bxe5 {[%clk 0:01:03.9]}
22. gxh5 {[%clk 0:01:09.9]} 22... Bxe6 {[%clk 0:00:53.8]} 23. Qxe6 {[%clk
0:01:06.6]} 23... Rxf3 {[%clk 0:00:48.4]} 24. Qxe7+ {[%clk 0:00:53.7]} 24... Rf7
{[%clk 0:00:45.4]} 25. h6+ {[%clk 0:00:43.7]} 25... Kg8 {[%clk 0:00:40.2]} 26.
Qxe5 {[%clk 0:00:40.8]} 26... Qxe5 {[%clk 0:00:39.5]} 27. dxe5 {[%clk
0:00:41.7]} 27... Re8 {[%clk 0:00:38.9]} 28. Kg2 {[%clk 0:00:36.5]} 28... Rxe5
{[%clk 0:00:37.9]} 29. Rhf1 {[%clk 0:00:26.8]} 29... Rg5+ {[%clk 0:00:33.5]} 30.
Kh2 {[%clk 0:00:26.6]} 30... Rf3 {[%clk 0:00:31]} 31. Re3 {[%clk 0:00:22.3]}
31... Rxe3 {[%clk 0:00:19.1]} 32. fxe3 {[%clk 0:00:22.5]} 32... Ra5 {[%clk
0:00:20]} 33. Rd1 {[%clk 0:00:22.6]} 33... Rxa4 {[%clk 0:00:19.1]} 34. Rd8+
{[%clk 0:00:17.6]} 34... Kf7 {[%clk 0:00:18.8]} 35. Rd7+ {[%clk 0:00:18.4]}
35... Kf6 {[%clk 0:00:19]} 36. Rxb7 {[%clk 0:00:17.5]} 36... Rxe4 {[%clk
0:00:19.9]} 37. Rxh7 {[%clk 0:00:16.6]} 37... Rxe3 {[%clk 0:00:19.5]} 38. Rxa7
{[%clk 0:00:16.7]} 38... c5 {[%clk 0:00:17.3]} 39. Ra8 {[%clk 0:00:11.8]} 39...
Re7 {[%clk 0:00:15.4]} 40. Rc8 {[%clk 0:00:10.1]} 40... Kg5 {[%clk 0:00:13]} 41.
Rxc5+ {[%clk 0:00:08.2]} 41... Kxh6 {[%clk 0:00:13.2]} 42. Kg3 {[%clk
0:00:08.5]} 42... Re3+ {[%clk 0:00:13.3]} 43. Kg4 {[%clk 0:00:08.7]} 43... Re1
{[%clk 0:00:13.1]} 44. Rc4 {[%clk 0:00:06.2]} 44... Rf1 {[%clk 0:00:12.2]} 45.
Kg3 {[%clk 0:00:06.1]} 45... Kg5 {[%clk 0:00:11.3]} 46. Rc5+ {[%clk 0:00:05.9]}
46... Kh6 {[%clk 0:00:11.3]} 47. Rc8 {[%clk 0:00:05.9]} 47... Kg7 {[%clk
0:00:10.9]} 48. Rc7+ {[%clk 0:00:06]} 48... Kh6 {[%clk 0:00:10.9]} 49. Rc8
{[%clk 0:00:06]} 49... Ra1 {[%clk 0:00:11.1]} 50. Rh8+ {[%clk 0:00:05.4]} 50...
Kg5 {[%clk 0:00:10.8]} 51. Rc8 {[%clk 0:00:06.3]} 51... Ra3+ {[%clk 0:00:10.5]}
52. Kg2 {[%clk 0:00:06.8]} 52... Kf4 {[%clk 0:00:10.2]} 53. Rc4+ {[%clk
0:00:06.3]} 53... Kg5 {[%clk 0:00:10.2]} 54. Rc5+ {[%clk 0:00:06.4]} 54... Kh4
{[%clk 0:00:09]} 55. Rc4+ {[%clk 0:00:06.7]} 55... Kh5 {[%clk 0:00:09]} 56. Rb4
{[%clk 0:00:07]} 56... g5 {[%clk 0:00:08.6]} 57. Rc4 {[%clk 0:00:07.2]} 57...
Ra2+ {[%clk 0:00:08.5]} 58. Kg3 {[%clk 0:00:07.1]} 58... Ra3+ {[%clk 0:00:08.9]}
59. Kg2 {[%clk 0:00:07.2]} 59... Rb3 {[%clk 0:00:09.1]} 60. Rd4 {[%clk
0:00:07.1]} 60... Rb2+ {[%clk 0:00:09]} 61. Kg3 {[%clk 0:00:07.1]} 61... Rb3+
{[%clk 0:00:09.9]} 62. Kg2 {[%clk 0:00:07.3]} 62... Ra3 {[%clk 0:00:10.5]} 63.
Rc4 {[%clk 0:00:07.6]} 1/2-1/2

[Event "Late-Titled-Tuesday-Blitz-March-05-2024"]
[Site "Chess.com"]
[Date "2024.03.05"]
[Round "3"]
[White "LikeWater"]
[Black "MatthewG-p4p"]
[Result "1-0"]
[WhiteElo "2698"]
[BlackElo "2887"]
[TimeControl "180+1"]
[EndTime "14:29:26 PST"]
[Termination "LikeWater won on time"]

1. e4 {[%clk 0:02:44.5]} 1... e6 {[%clk 0:03:00.1]} 2. d4 {[%clk 0:02:43]} 2...
d5 {[%clk 0:03:00.8]} 3. e5 {[%clk 0:02:43.5]} 3... c5 {[%clk 0:03:00.9]} 4. c3
{[%clk 0:02:44.1]} 4... Qb6 {[%clk 0:03:01.7]} 5. Nf3 {[%clk 0:02:44.2]} 5...
Nc6 {[%clk 0:03:02.4]} 6. Bd3 {[%clk 0:02:44.1]} 6... cxd4 {[%clk 0:03:02.8]} 7.
O-O {[%clk 0:02:44.3]} 7... Bd7 {[%clk 0:03:03.7]} 8. Nbd2 {[%clk 0:02:42.5]}
8... dxc3 {[%clk 0:03:00.2]} 9. bxc3 {[%clk 0:02:43.4]} 9... Na5 {[%clk
0:03:00.3]} 10. Rb1 {[%clk 0:02:40.6]} 10... Qc7 {[%clk 0:03:00.2]} 11. Re1
{[%clk 0:02:39.3]} 11... Ne7 {[%clk 0:02:52.4]} 12. Nb3 {[%clk 0:02:28.4]} 12...
Nxb3 {[%clk 0:02:50.6]} 13. axb3 {[%clk 0:02:26.3]} 13... Qxc3 {[%clk
0:02:35.6]} 14. h4 {[%clk 0:02:19.4]} 14... Nc6 {[%clk 0:02:31.5]} 15. h5 {[%clk
0:02:09.4]} 15... h6 {[%clk 0:02:31]} 16. Bf4 {[%clk 0:02:08.4]} 16... Qb4
{[%clk 0:02:30.7]} 17. Bd2 {[%clk 0:02:03.1]} 17... Qb6 {[%clk 0:02:29.3]} 18.
b4 {[%clk 0:01:51.1]} 18... Nxb4 {[%clk 0:02:15.5]} 19. Bf1 {[%clk 0:01:39.1]}
19... a5 {[%clk 0:02:06.9]} 20. Be3 {[%clk 0:01:36.1]} 20... Bc5 {[%clk
0:02:06.8]} 21. Nd4 {[%clk 0:01:31.4]} 21... Rc8 {[%clk 0:01:48.7]} 22. Qg4
{[%clk 0:01:30.3]} 22... Kf8 {[%clk 0:01:44.9]} 23. Rec1 {[%clk 0:01:30.1]}
23... Kg8 {[%clk 0:01:29.4]} 24. Rc3 {[%clk 0:00:47.4]} 24... Qd8 {[%clk
0:01:22.8]} 25. Rbc1 {[%clk 0:00:34.3]} 25... b6 {[%clk 0:01:23]} 26. f4 {[%clk
0:00:32.2]} 26... Na2 {[%clk 0:01:21.1]} 27. f5 {[%clk 0:00:30.3]} 27... exf5
{[%clk 0:01:05.6]} 28. Nxf5 {[%clk 0:00:30.5]} 28... Bxf5 {[%clk 0:01:05.7]} 29.
Qxf5 {[%clk 0:00:31.4]} 29... Nxc1 {[%clk 0:00:38.9]} 30. e6 {[%clk 0:00:28.3]}
30... Rc7 {[%clk 0:00:18.4]} 31. Bxc5 {[%clk 0:00:19.8]} 31... bxc5 {[%clk
0:00:16.6]} 32. Rxc5 {[%clk 0:00:20.4]} 32... Re7 {[%clk 0:00:07.2]} 33. Rc8
{[%clk 0:00:20.3]} 33... Qxc8 {[%clk 0:00:04.8]} 34. exf7+ {[%clk 0:00:20.8]}
34... Rxf7 {[%clk 0:00:05.7]} 35. Qxc8+ {[%clk 0:00:21.1]} 35... Rf8 {[%clk
0:00:06.3]} 36. Qe6+ {[%clk 0:00:19.6]} 36... Rf7 {[%clk 0:00:05.9]} 37. Qc8+
{[%clk 0:00:18.3]} 37... Rf8 {[%clk 0:00:06.1]} 38. Qxc1 {[%clk 0:00:18.8]}
38... Kf7 {[%clk 0:00:06.8]} 39. Qc7+ {[%clk 0:00:18.7]} 39... Kf6 {[%clk
0:00:06.7]} 40. Qd6+ {[%clk 0:00:18.1]} 40... Kg5 {[%clk 0:00:06.8]} 41. Qxd5+
{[%clk 0:00:17.7]} 41... Rf5 {[%clk 0:00:07.6]} 42. Qd2+ {[%clk 0:00:17.8]}
42... Kf6 {[%clk 0:00:08.4]} 43. Bd3 {[%clk 0:00:16.9]} 43... Rg5 {[%clk
0:00:04.8]} 44. Qf4+ {[%clk 0:00:16.3]} 44... Ke7 {[%clk 0:00:05.5]} 45. Qe3+
{[%clk 0:00:15.3]} 45... Kf6 {[%clk 0:00:05.4]} 46. Qd4+ {[%clk 0:00:14.9]}
46... Ke7 {[%clk 0:00:05.6]} 47. Qa7+ {[%clk 0:00:13.4]} 47... Kf6 {[%clk
0:00:06.3]} 48. Qb6+ {[%clk 0:00:13.8]} 48... Ke7 {[%clk 0:00:06.5]} 49. Qc7+
{[%clk 0:00:14.1]} 49... Ke6 {[%clk 0:00:03.9]} 50. Bc4+ {[%clk 0:00:13.8]}
50... Kf5 {[%clk 0:00:04.6]} 51. Qf7+ {[%clk 0:00:09.9]} 51... Ke4 {[%clk
0:00:05.2]} 52. Qf3+ {[%clk 0:00:08.5]} 52... Kd4 {[%clk 0:00:05.6]} 53. Qf4+
{[%clk 0:00:07.2]} 53... Kc3 {[%clk 0:00:05.3]} 54. Be2 {[%clk 0:00:06.6]} 54...
a4 {[%clk 0:00:02.6]} 55. Qxa4 {[%clk 0:00:04.9]} 55... Kd2 {[%clk 0:00:03.5]}
56. Bf3 {[%clk 0:00:05.3]} 56... Rd8 {[%clk 0:00:03]} 57. Qb4+ {[%clk
0:00:04.5]} 57... Kc2 {[%clk 0:00:01.4]} 58. Qe4+ {[%clk 0:00:04.3]} 58... Kd2
{[%clk 0:00:01.5]} 59. Qe7 {[%clk 0:00:04.3]} 1-0